[Event "Summer Prague Open-A 2024"]
[Site "Prague"]
[Date "2024.08.06"]
[Round "6.9"]
[White "Kuhn, Tobias"]
[Black "Kudaibergen, Nurlykhan"]
[Result "1-0"]
[Annotator "RC"]
[ECO "C28"]
[WhiteElo "2223"]
[BlackElo "2041"]
[PlyCount "136"]
[EventDate "2024.08.02"]
[EventType "swiss"]
[EventCountry "CZE"]
[SourceTitle "playchess.com"]
[Source "ChessBase"]
[SourceQuality "1"]
[TimeControl "40/5400+30:1800+30"]

1. e4 {[%emt 0:00:03]} e5 {[%emt 0:02:26]} 2. Bc4 {[%emt 0:00:27]} Nc6 {[%emt 0:01:37]} 3. Nc3 {[%emt 0:01:03]} Nf6 {[%emt 0:00:18]} 4. d3 {[%emt 0:00:05]} Bb4 5. Nge2 d5 {[%emt 0:00:40]} 6. exd5 {[%emt 0:00:36]} Nxd5 {[%emt 0:00:05]} 7. O-O {[%emt 0:00:31]} Be6 {[%emt 0:00:41]} 8. Bxd5 {[%emt 0:00:49]} Bxd5 {[%emt 0:00:05]} 9. f4 {[%emt 0:00:42]} f6 {[%emt 0:00:10]} 10. Ng3 {[%emt 0:09:56]} Bf7 {[%emt 0:21:55]} 11. Nce4 {[%emt 0:11:15]} Qd7 {[%emt 0:07:25]} 12. fxe5 {[%emt 0:12:41]} Nxe5 {[%emt 0:18:01]} 13. Rxf6 {[%emt 0:03:08]} O-O-O {[%emt 0:00:05]} 14. Rf1 {[%emt 0:02:20]} h5 {[%emt 0:00:23]} 15. Bg5 {[%emt 0:07:51]} h4 {[%emt 0:01:35]} 16. Nf5 {[%emt 0:02:43]} Bh5 {[%emt 0:19:10]} 17. Qc1 {[%emt 0:01:54]} Rdf8 {[%emt 0:11:54]} 18. Nxh4 {[%emt 0:15:54]} Rxf1+ {[%emt 0:00:21]} 19. Kxf1 {[%emt 0:03:06]} Nxd3 {[%emt 0:04:45]} 20. Qe3 {[%emt 0:01:41]} Rf8+ {[%emt 0:02:03]} 21. Kg1 {[%emt 0:00:22]} Nxb2 {[%emt 0:00:31]} 22. Nc5 {[%emt 0:06:21]} Qc6 {[%emt 0:02:49]} 23. Qh3+ {[%emt 0:00:32]} Kb8 {[%emt 0:00:33]} 24. Nd7+ {[%emt 0:00:06]} Ka8 {[%emt 0:01:07]} 25. Nxf8 {[%emt 0:00:11]} Qc5+ {[%emt 0:00:17]} 26. Kh1 {[%emt 0:02:38]} Qxf8 {[%emt 0:00:08]} 27. Qb3 {[%emt 0:03:02]} Nd1 {[%emt 0:00:23]} 28. Nf3 {[%emt 0:03:20]} Nf2+ {[%emt 0:01:23]} 29. Kg1 {[%emt 0:00:04]} Bxf3 {[%emt 0:01:33]} 30. Qxf3 {[%emt 0:02:42]} Qxf3 {[%emt 0:00:22]} 31. gxf3 {[%emt 0:00:05]} Nh3+ {[%emt 0:00:04]} 32. Kh1 {[%emt 0:01:54]} Bc3 {[%emt 0:00:37]} 33. Rg1 {[%emt 0:05:10]} Nxg1 {[%emt 0:00:20]} 34. Kxg1 {[%emt 0:00:04]} Kb8 {[%emt 0:00:54]} 35. Kf2 {[%emt 0:00:24]} Kc8 {[%emt 0:00:12]} 36. Ke3 {[%emt 0:00:15]} Kd7 {[%emt 0:00:29]} 37. Kd3 {[%emt 0:00:23]} Be5 {[%emt 0:00:33]} 38. f4 {[%emt 0:00:18]} Bd6 {[%emt 0:00:21]} 39. Ke4 {[%emt 0:00:06]} Ke6 {[%emt 0:02:20]} 40. f5+ {[%emt 0:00:12]} Kd7 {[%emt 0:01:21]} 41. h4 {[%emt 0:30:22]} Bf8 {[%emt 0:30:29]} 42. h5 {[%emt 0:02:08]} b5 {[%emt 0:00:00]} 43. Be3 {[%emt 0:00:00]} a5 {[%emt 0:00:00]} 44. Bd4 {[%emt 0:00:00]} c5 {[%emt 0:00:00]} 45. Bb2 {[%emt 0:00:00]} Kd6 {[%emt 0:00:00]} 46. f6 {[%emt 0:00:00]} gxf6 {[%emt 0:00:00]} 47. Kf5 {[%emt 0:00:00]} Ke7 {[%emt 0:00:00]} 48. Bxf6+ {[%emt 0:00:00]} Kf7 {[%emt 0:00:00]} 49. Bb2 {[%emt 0:02:36]} Bh6 {[%emt 0:00:00]} 50. Bh8 {[%emt 0:01:30]} Kg8 {[%emt 0:00:00]} 51. Be5 {[%emt 0:00:34]} Kf7 {[%emt 0:02:24]} 52. Bd6 {[%emt 0:00:21]} c4 {[%emt 0:00:45]} 53. Ke5 {[%emt 0:00:07]} Be3 {[%emt 0:00:57]} 54. Kd5 {[%emt 0:00:32]} Kf6 {[%emt 0:01:42]} 55. Bc7 {[%emt 0:01:46]} a4 {[%emt 0:01:16]} 56. Ba5 {[%emt 0:00:32]} Kg5 {[%emt 0:00:30]} 57. Kc6 {[%emt 0:00:06]} Kxh5 {[%emt 0:00:11]} 58. Kxb5 {[%emt 0:00:05]} a3 {[%emt 0:00:08]} 59. Bb4 {[%emt 0:00:44]} Kg5 {[%emt 0:00:34]} 60. Bxa3 {[%emt 0:00:06]} Kf5 {[%emt 0:00:31]} 61. Bc5 {[%emt 0:00:29]} Bd2 {[%emt 0:00:23]} 62. a4 {[%emt 0:00:22]} Ke6 {[%emt 0:00:36]} 63. Bb4 {[%emt 0:01:04]} Be3 {[%emt 0:00:20]} 64. Kc6 {[%emt 0:00:11]} Ba7 {[%emt 0:01:15]} 65. Bc5 {[%emt 0:00:45]} Bb8 {[%emt 0:00:04]} 66. a5 {[%emt 0:00:09]} Ke5 {[%emt 0:00:10]} 67. a6 {[%emt 0:00:09]} c3 {[%emt 0:00:40]} 68. Kb7 {[%emt 0:00:10]} Kd5 1-0

[Event "Summer Prague Open-A 2024"]
[Site "Prague"]
[Date "2024.08.06"]
[Round "6.10"]
[White "Kulhanek, Tomas"]
[Black "Taborsky, Rostislav"]
[Result "1/2-1/2"]
[Annotator "RC"]
[ECO "C02"]
[WhiteElo "2317"]
[BlackElo "2051"]
[PlyCount "71"]
[EventDate "2024.08.02"]
[EventType "swiss"]
[EventCountry "CZE"]
[SourceTitle "playchess.com"]
[Source "ChessBase"]
[SourceQuality "1"]
[TimeControl "40/5400+30:1800+30"]

1. e4 {[%emt 0:00:03]} e6 {[%emt 0:06:06]} 2. d4 {[%emt 0:00:13]} d5 {[%emt 0:00:04]} 3. e5 {[%emt 0:00:15]} c5 {[%emt 0:00:09]} 4. c3 {[%emt 0:00:05]} Nc6 {[%emt 0:00:02]} 5. Nf3 {[%emt 0:00:05]} Qb6 {[%emt 0:00:06]} 6. Bd3 {[%emt 0:00:47]} cxd4 {[%emt 0:00:08]} 7. O-O {[%emt 0:00:28]} Bd7 {[%emt 0:00:10]} 8. Re1 {[%emt 0:00:18]} Nge7 {[%emt 0:01:37]} 9. h4 {[%emt 0:00:27]} a6 {[%emt 0:24:19]} 10. h5 {[%emt 0:00:36]} g6 {[%emt 0:09:44]} 11. Nbd2 {[%emt 0:09:03]} dxc3 {[%emt 0:06:05]} 12. bxc3 {[%emt 0:00:03]} Qc7 {[%emt 0:15:56]} 13. Ba3 {[%emt 0:08:38]} Nf5 {[%emt 0:03:50]} 14. Bxf8 {[%emt 0:00:21]} Rxf8 {[%emt 0:01:37]} 15. c4 {[%emt 0:06:02]} O-O-O {[%emt 0:04:26]} 16. cxd5 {[%emt 0:04:09]} exd5 {[%emt 0:00:18]} 17. Rb1 {[%emt 0:00:09]} Rde8 {[%emt 0:10:51]} 18. Nb3 {[%emt 0:04:29]} Nxe5 {[%emt 0:07:16]} 19. Rxe5 {[%emt 0:16:02]} Rxe5 {[%emt 0:01:22]} 20. Rc1 {[%emt 0:00:08]} Bc6 {[%emt 0:00:14]} 21. Nxe5 {[%emt 0:00:10]} Qxe5 {[%emt 0:00:15]} 22. Na5 {[%emt 0:02:47]} Nd4 {[%emt 0:02:43]} 23. Bxa6 {[%emt 0:10:24]} Kd7 {[%emt 0:01:44]} 24. Bf1 {[%emt 0:01:56]} Ra8 {[%emt 0:00:59]} 25. Nc4 {[%emt 0:03:17]} dxc4 {[%emt 0:01:30]} 26. Rxc4 {[%emt 0:00:02]} Ra4 {[%emt 0:00:13]} 27. Rxa4 {[%emt 0:00:07]} Bxa4 {[%emt 0:00:21]} 28. Qxa4+ {[%emt 0:00:01]} b5 {[%emt 0:01:31]} 29. Qa7+ {[%emt 0:01:12]} Ke6 {[%emt 0:00:38]} 30. h6 {[%emt 0:00:45]} Nf3+ {[%emt 0:00:31]} 31. gxf3 {[%emt 0:00:08]} Qg5+ {[%emt 0:00:04]} 32. Kh2 {[%emt 0:03:15]} Qf4+ {[%emt 0:00:09]} 33. Kg2 {[%emt 0:01:15]} Qg5+ {[%emt 0:00:05]} 34. Kh1 {[%emt 0:00:16]} Qxh6+ {[%emt 0:00:19]} 35. Kg1 {[%emt 0:00:11]} Qg5+ {[%emt 0:00:07]} 36. Bg2 {[%emt 0:00:04]} 1/2-1/2

[Event "Summer Prague Open-A 2024"]
[Site "Prague"]
[Date "2024.08.06"]
[Round "6.11"]
[White "Ptacnikova, Lenka"]
[Black "Eret, Matous"]
[Result "0-1"]
[Annotator "RC"]
[ECO "A20"]
[WhiteElo "2086"]
[BlackElo "2316"]
[PlyCount "92"]
[EventDate "2024.08.02"]
[EventType "swiss"]
[EventCountry "CZE"]
[SourceTitle "playchess.com"]
[Source "ChessBase"]
[SourceQuality "1"]
[TimeControl "40/5400+30:1800+30"]

1. c4 {[%emt 0:00:03]} e5 {[%emt 0:00:07]} 2. g3 {[%emt 0:00:13]} Nf6 {[%emt 0:00:56]} 3. Bg2 {[%emt 0:00:11]} d6 {[%emt 0:00:27]} 4. Nc3 {[%emt 0:00:43]} Be7 {[%emt 0:01:02]} 5. d4 {[%emt 0:02:07]} Nbd7 {[%emt 0:00:52]} 6. Nf3 {[%emt 0:00:42]} O-O {[%emt 0:01:31]} 7. O-O {[%emt 0:00:25]} c6 {[%emt 0:01:12]} 8. e4 {[%emt 0:00:26]} a6 {[%emt 0:06:12]} 9. d5 {[%emt 0:03:59]} cxd5 {[%emt 0:02:02]} 10. cxd5 {[%emt 0:00:18]} b5 {[%emt 0:01:43]} 11. Nd2 {[%emt 0:01:38]} Nb6 {[%emt 0:02:50]} 12. h3 {[%emt 0:00:58]} g6 {[%emt 0:04:53]} 13. Nb3 {[%emt 0:10:00]} b4 {[%emt 0:04:56]} 14. Ne2 {[%emt 0:03:46]} a5 {[%emt 0:02:06]} 15. Bh6 {[%emt 0:00:05]} Re8 {[%emt 0:00:37]} 16. Rc1 {[%emt 0:00:27]} Ba6 {[%emt 0:02:52]} 17. Na1 {[%emt 0:04:05]} Nc4 {[%emt 0:06:53]} 18. b3 {[%emt 0:03:43]} Nb2 {[%emt 0:00:39]} 19. Qd2 {[%emt 0:00:31]} Nd3 {[%emt 0:00:09]} 20. Rcd1 {[%emt 0:03:23]} Rc8 {[%emt 0:03:47]} 21. Be3 {[%emt 0:01:09]} Nc5 {[%emt 0:07:12]} 22. f3 {[%emt 0:01:55]} Nh5 {[%emt 0:00:46]} 23. Kh2 {[%emt 0:00:24]} f5 {[%emt 0:01:45]} 24. g4 {[%emt 0:07:41]} fxg4 {[%emt 0:08:59]} 25. hxg4 {[%emt 0:01:29]} Nf4 {[%emt 0:00:22]} 26. Nxf4 {[%emt 0:06:18]} exf4 {[%emt 0:01:39]} 27. Bxf4 {[%emt 0:00:42]} Bxf1 {[%emt 0:00:49]} 28. Bxf1 {[%emt 0:00:27]} Bf6 {[%emt 0:01:26]} 29. Nc2 {[%emt 0:03:17]} Rf8 {[%emt 0:04:50]} 30. Kg2 {[%emt 0:05:56]} Qe7 {[%emt 0:07:38]} 31. Qe2 {[%emt 0:11:19]} Be5 {[%emt 0:03:14]} 32. Bxe5 {[%emt 0:00:17]} Qxe5 {[%emt 0:00:05]} 33. Nd4 {[%emt 0:00:16]} h5 {[%emt 0:04:33]} 34. gxh5 {[%emt 0:04:59]} gxh5 {[%emt 0:06:25]} 35. Nf5 {[%emt 0:00:19]} Rce8 {[%emt 0:01:32]} 36. Nh4 {[%emt 0:05:59]} Rf4 {[%emt 0:03:02]} 37. Kh3 {[%emt 0:01:22]} Kh7 {[%emt 0:03:22]} 38. Ng2 {[%emt 0:03:52]} Rf6 {[%emt 0:03:28]} 39. Re1 {[%emt 0:01:34]} Rg8 {[%emt 0:00:56]} 40. f4 {[%emt 0:00:21]} Qc3+ {[%emt 0:01:48]} 41. Qe3 {[%emt 0:30:43]} Rfg6 {[%emt 0:02:08]} 42. Qxc3 {[%emt 0:00:00]} bxc3 {[%emt 0:00:05]} 43. e5 {[%emt 0:00:00]} Rg3+ {[%emt 0:01:56]} 44. Kh2 {[%emt 0:00:00]} Nd3 {[%emt 0:03:01]} 45. Bxd3+ {[%emt 0:00:00]} Rxd3 {[%emt 0:00:26]} 46. Ne3 {[%emt 0:00:00]} c2 {[%emt 0:01:25]} 0-1

[Event "Summer Prague Open-A 2024"]
[Site "Prague"]
[Date "2024.08.06"]
[Round "6.12"]
[White "Mirimanian, Hayk"]
[Black "Bacak, Petr"]
[Result "1/2-1/2"]
[Annotator "NA RC"]
[ECO "B92"]
[WhiteElo "2290"]
[BlackElo "2049"]
[PlyCount "98"]
[EventDate "2024.08.02"]
[EventType "swiss"]
[EventCountry "CZE"]
[SourceTitle "playchess.com"]
[Source "ChessBase"]
[SourceQuality "1"]
[TimeControl "40/5400+30:1800+30"]

1. e4 {[%emt 0:00:04]} c5 {[%emt 0:00:06]} 2. Nf3 {[%emt 0:00:27]} d6 {[%emt 0:00:06]} 3. d4 {[%emt 0:00:38]} cxd4 {[%emt 0:00:06]} 4. Nxd4 {[%emt 0:00:05]} Nf6 {[%emt 0:00:06]} 5. Nc3 {[%emt 0:00:14]} a6 {[%emt 0:00:06]} 6. Be2 {[%emt 0:00:30]} e5 {[%emt 0:00:36]} 7. Nb3 {[%emt 0:00:07]} Be7 {[%emt 0:00:10]} 8. O-O {[%emt 0:00:54]} O-O {[%emt 0:00:15]} 9. Be3 {[%emt 0:00:24]} Be6 {[%emt 0:04:50]} 10. Qd3 {[%emt 0:01:22]} Nbd7 {[%emt 0:03:14]} 11. Nd5 {[%emt 0:01:12]} Bxd5 {[%emt 0:05:00]} 12. exd5 {[%emt 0:00:16]} b6 {[%emt 0:03:43]} 13. c4 {[%emt 0:33:33]} Nc5 {[%emt 0:00:51]} 14. Qc2 {[%emt 0:02:50]} Nfd7 {[%emt 0:01:39]} 15. Nd2 {[%emt 0:16:18]} a5 {[%emt 0:00:41]} 16. b3 {[%emt 0:00:15]} Bg5 {[%emt 0:03:14]} 17. Bxg5 {[%emt 0:03:07]} Qxg5 {[%emt 0:00:07]} 18. a3 {[%emt 0:00:29]} Qg6 {[%emt 0:06:51]} 19. Qxg6 {[%emt 0:02:36]} hxg6 {[%emt 0:00:36]} 20. b4 {[%emt 0:00:23]} axb4 {[%emt 0:01:16]} 21. axb4 {[%emt 0:00:07]} Nb7 {[%emt 0:00:30]} 22. Rfc1 {[%emt 0:11:17]} Rfc8 {[%emt 0:05:35]} 23. Bd1 {[%emt 0:00:59]} Nf6 {[%emt 0:04:24]} 24. Ba4 {[%emt 0:02:07]} Nd8 {[%emt 0:07:32]} 25. Kf1 {[%emt 0:02:35]} Kf8 {[%emt 0:00:50]} 26. Bb5 {[%emt 0:00:12]} Ke7 {[%emt 0:02:00]} 27. Ke2 {[%emt 0:01:50]} Ne8 {[%emt 0:05:46]} 28. Kd3 {[%emt 0:13:22]} Nc7 {[%emt 0:01:21]} 29. h4 {[%emt 0:03:33]} Rxa1 {[%emt 0:05:41]} 30. Rxa1 {[%emt 0:00:00]} Ra8 {[%emt 0:00:11]} 31. Rxa8 {[%emt 0:00:34]} Nxa8 {[%emt 0:00:05]} 32. Ne4 {[%emt 0:01:36]} Nc7 {[%emt 0:00:30]} 33. Ba4 {[%emt 0:01:59]} f5 {[%emt 0:04:29]} 34. Nc3 {[%emt 0:00:52]} Na6 {[%emt 0:01:57]} 35. Na2 {[%emt 0:00:04]} Nf7 {[%emt 0:01:22]} 36. Bc6 {[%emt 0:00:45]} e4+ {[%emt 0:01:30]} 37. Kd4 {[%emt 0:00:01]} Ne5 {[%emt 0:00:24]} 38. Bb7 {[%emt 0:00:55]} Nc7 {[%emt 0:02:11]} 39. Nc1 {[%emt 0:00:10]} Ng4 {[%emt 0:02:01]} 40. f3 {[%emt 0:01:06]} exf3 {[%emt 0:00:47]} 41. gxf3 {[%emt 0:30:27]} Ne5 {[%emt 0:32:44]} 42. f4 {[%emt 0:00:00]} Nf3+ {[%emt 0:00:00]} 43. Ke3 {[%emt 0:00:00]} Nxh4 {[%emt 0:00:00]} 44. Nd3 {[%emt 0:00:00]} Kf6 {[%emt 0:00:00]} 45. c5 {[%emt 0:00:00]} bxc5 {[%emt 0:00:00]} 46. bxc5 {[%emt 0:00:00]} dxc5 {[%emt 0:00:00]} 47. d6 {[%emt 0:00:00]} Ne6 {[%emt 0:00:00]} 48. Bd5 {[%emt 0:00:00]} Nf8 {[%emt 0:00:00]} 49. Nxc5 {[%emt 0:00:00]} g5 1/2-1/2

[Event "Summer Prague Open-A 2024"]
[Site "Prague"]
[Date "2024.08.06"]
[Round "6.13"]
[White "Kuhn, Ulf"]
[Black "Neukirchner, Pascal"]
[Result "1-0"]
[Annotator "RC"]
[ECO "A37"]
[WhiteElo "2082"]
[BlackElo "2261"]
[PlyCount "151"]
[EventDate "2024.08.02"]
[EventType "swiss"]
[EventCountry "CZE"]
[SourceTitle "playchess.com"]
[Source "ChessBase"]
[SourceQuality "1"]
[TimeControl "40/5400+30:1800+30"]

1. c4 {[%emt 0:00:01]} c5 {[%emt 0:00:06]} 2. Nc3 {[%emt 0:00:04]} g6 {[%emt 0:00:07]} 3. Nf3 {[%emt 0:00:27]} Bg7 {[%emt 0:00:07]} 4. g3 {[%emt 0:00:07]} Nc6 {[%emt 0:00:34]} 5. Bg2 {[%emt 0:00:08]} d6 {[%emt 0:00:35]} 6. O-O {[%emt 0:00:45]} e5 {[%emt 0:01:09]} 7. a3 {[%emt 0:00:29]} a5 {[%emt 0:00:16]} 8. d3 {[%emt 0:00:28]} Nge7 {[%emt 0:00:07]} 9. Ne1 {[%emt 0:00:16]} Be6 {[%emt 0:00:05]} 10. Be3 {[%emt 0:00:10]} O-O {[%emt 0:00:54]} 11. Nc2 {[%emt 0:00:30]} Rb8 {[%emt 0:02:16]} 12. Rb1 {[%emt 0:00:32]} Qd7 {[%emt 0:00:53]} 13. b4 {[%emt 0:01:34]} axb4 {[%emt 0:00:08]} 14. axb4 {[%emt 0:00:06]} b6 {[%emt 0:00:04]} 15. Bg5 {[%emt 0:03:34]} f6 {[%emt 0:00:27]} 16. Bd2 {[%emt 0:00:07]} Bh3 {[%emt 0:04:03]} 17. b5 {[%emt 0:05:01]} Bxg2 {[%emt 0:00:25]} 18. Kxg2 {[%emt 0:00:06]} Nd4 {[%emt 0:01:28]} 19. Ne3 {[%emt 0:15:49]} Qb7+ {[%emt 0:19:05]} 20. Ned5 {[%emt 0:02:04]} Ra8 {[%emt 0:00:21]} 21. e3 {[%emt 0:11:07]} Nxd5 {[%emt 0:21:37]} 22. Nxd5 {[%emt 0:00:08]} Ne6 {[%emt 0:00:08]} 23. Qf3 {[%emt 0:00:49]} Kh8 {[%emt 0:00:24]} 24. Ra1 {[%emt 0:01:45]} f5 {[%emt 0:02:06]} 25. e4 {[%emt 0:19:24]} Nd4 {[%emt 0:14:53]} 26. Qd1 {[%emt 0:00:16]} f4 {[%emt 0:00:38]} 27. f3 {[%emt 0:04:18]} Bh6 {[%emt 0:07:36]} 28. g4 {[%emt 0:12:36]} Bg5 {[%emt 0:00:18]} 29. Bc3 {[%emt 0:04:38]} Ne6 {[%emt 0:03:26]} 30. Qb3 {[%emt 0:04:48]} h5 {[%emt 0:00:54]} 31. gxh5 {[%emt 0:03:19]} gxh5 {[%emt 0:00:02]} 32. Kh1 {[%emt 0:00:37]} Bh4 {[%emt 0:00:26]} 33. Qb2 {[%emt 0:01:07]} Rxa1 {[%emt 0:05:40]} 34. Rxa1 {[%emt 0:00:47]} Ng5 {[%emt 0:04:38]} 35. Qg2 {[%emt 0:01:23]} Rg8 {[%emt 0:04:58]} 36. Rg1 {[%emt 0:01:43]} Qf7 {[%emt 0:01:44]} 37. Nxb6 {[%emt 0:01:59]} Rg6 {[%emt 0:00:01]} 38. Qf1 {[%emt 0:03:11]} Bf2 {[%emt 0:03:43]} 39. Rxg5 {[%emt 0:01:47]} Rxg5 {[%emt 0:00:15]} 40. Qxf2 {[%emt 0:00:04]} Qa7 {[%emt 0:01:16]} 41. Nd5 {[%emt 0:30:24]} Qa4 {[%emt 0:31:55]} 42. Qf1 {[%emt 0:00:00]} Qb3 {[%emt 0:00:00]} 43. Qc1 {[%emt 0:00:00]} Kh7 {[%emt 0:00:00]} 44. Ne7 {[%emt 0:00:00]} Rg7 {[%emt 0:00:00]} 45. Nf5 {[%emt 0:00:00]} Rg6 {[%emt 0:00:00]} 46. Ne7 {[%emt 0:00:00]} Rg7 {[%emt 0:00:00]} 47. Nc6 {[%emt 0:00:00]} h4 {[%emt 0:00:00]} 48. Na5 {[%emt 0:00:00]} Qa4 {[%emt 0:00:00]} 49. Qb1 {[%emt 0:00:00]} h3 {[%emt 0:00:00]} 50. Qb3 {[%emt 0:00:00]} Qxb3 {[%emt 0:00:00]} 51. Nxb3 {[%emt 0:00:00]} Rg2 {[%emt 0:00:00]} 52. b6 {[%emt 0:00:00]} Rf2 {[%emt 0:00:00]} 53. Nd2 {[%emt 0:01:12]} Re2 {[%emt 0:00:00]} 54. Kg1 {[%emt 0:00:49]} Rg2+ {[%emt 0:00:00]} 55. Kf1 {[%emt 0:00:26]} Rxh2 {[%emt 0:00:00]} 56. b7 {[%emt 0:01:04]} Rh1+ {[%emt 0:00:00]} 57. Kf2 {[%emt 0:00:21]} Rh2+ {[%emt 0:00:00]} 58. Kg1 {[%emt 0:01:30]} Rg2+ {[%emt 0:00:00]} 59. Kh1 {[%emt 0:00:25]} Rg8 {[%emt 0:00:00]} 60. Nb3 {[%emt 0:00:30]} Rb8 {[%emt 0:00:00]} 61. Na5 {[%emt 0:00:01]} Kg6 {[%emt 0:00:00]} 62. Kh2 {[%emt 0:00:02]} Kg7 {[%emt 0:00:00]} 63. Kxh3 {[%emt 0:00:05]} Kf8 {[%emt 0:00:00]} 64. Be1 {[%emt 0:01:45]} Ke8 {[%emt 0:00:00]} 65. Kg4 {[%emt 0:00:46]} Kd7 {[%emt 0:00:00]} 66. Kf5 {[%emt 0:01:17]} Kc7 {[%emt 0:00:09]} 67. Ke6 {[%emt 0:00:25]} Re8+ {[%emt 0:00:12]} 68. Kd5 {[%emt 0:00:11]} Rh8 {[%emt 0:00:11]} 69. Nb3 {[%emt 0:03:25]} Rh3 {[%emt 0:00:54]} 70. Ba5+ {[%emt 0:00:27]} Kxb7 {[%emt 0:00:01]} 71. Kxd6 {[%emt 0:00:11]} Rxf3 {[%emt 0:00:35]} 72. Nxc5+ {[%emt 0:00:03]} Kc8 {[%emt 0:00:18]} 73. Kxe5 {[%emt 0:00:20]} Rf1 {[%emt 0:00:03]} 74. Bd2 {[%emt 0:00:14]} f3 {[%emt 0:00:03]} 75. Kf4 {[%emt 0:00:20]} f2 {[%emt 0:01:57]} 76. Be3 {[%emt 0:00:01]} 1-0

[Event "Summer Prague Open-A 2024"]
[Site "Prague"]
[Date "2024.08.06"]
[Round "6.14"]
[White "Toure, Ananth"]
[Black "Petr, Jakub"]
[Result "0-1"]
[Annotator "NA RC"]
[ECO "C54"]
[WhiteElo "2073"]
[BlackElo "2243"]
[PlyCount "64"]
[EventDate "2024.08.02"]
[EventType "swiss"]
[EventCountry "CZE"]
[SourceTitle "playchess.com"]
[Source "ChessBase"]
[SourceQuality "1"]
[TimeControl "40/5400+30:1800+30"]

1. e4 {[%emt 0:00:08]} e5 {[%emt 0:00:09]} 2. Nf3 {[%emt 0:00:40]} Nc6 {[%emt 0:00:06]} 3. Bc4 {[%emt 0:00:08]} Bc5 {[%emt 0:00:06]} 4. c3 {[%emt 0:00:07]} Nf6 {[%emt 0:00:11]} 5. d4 {[%emt 0:01:42]} exd4 {[%emt 0:00:08]} 6. b4 {[%emt 0:00:05]} Be7 {[%emt 0:02:30]} 7. e5 {[%emt 0:01:53]} Ne4 {[%emt 0:00:49]} 8. b5 {[%emt 0:17:04]} Na5 {[%emt 0:00:30]} 9. Bd3 {[%emt 0:01:45]} Nxc3 {[%emt 0:02:25]} 10. Nxc3 {[%emt 0:00:07]} dxc3 {[%emt 0:00:06]} 11. Qa4 {[%emt 0:00:16]} c6 {[%emt 0:05:28]} 12. Qg4 {[%emt 0:01:33]} g6 {[%emt 0:00:17]} 13. Bh6 {[%emt 0:09:02]} d5 {[%emt 0:04:28]} 14. Qf4 {[%emt 0:08:58]} Be6 {[%emt 0:01:08]} 15. O-O {[%emt 0:00:37]} c5 {[%emt 0:10:48]} 16. Rad1 {[%emt 0:03:28]} Qb6 {[%emt 0:08:05]} 17. Ng5 {[%emt 0:16:30]} c4 {[%emt 0:06:22]} 18. Be2 {[%emt 0:00:41]} Qxb5 {[%emt 0:18:59]} 19. Bg4 {[%emt 0:02:52]} O-O-O {[%emt 0:11:24]} 20. Nxf7 {[%emt 0:04:00]} Qd7 {[%emt 0:02:52]} 21. Bxe6 {[%emt 0:01:06]} Qxe6 {[%emt 0:00:03]} 22. Nxh8 {[%emt 0:00:07]} Rxh8 {[%emt 0:00:05]} 23. Qd4 {[%emt 0:02:59]} c2 {[%emt 0:00:08]} 24. Rd2 {[%emt 0:03:30]} Nc6 {[%emt 0:02:00]} 25. Qxd5 {[%emt 0:01:31]} Qxd5 {[%emt 0:00:06]} 26. Rxd5 {[%emt 0:00:03]} Rd8 {[%emt 0:01:43]} 27. Rxd8+ {[%emt 0:04:19]} Kxd8 {[%emt 0:00:40]} 28. Rc1 {[%emt 0:02:35]} Nd4 {[%emt 0:00:05]} 29. Kf1 {[%emt 0:00:45]} Ba3 {[%emt 0:00:35]} 30. Re1 {[%emt 0:00:10]} b5 {[%emt 0:04:00]} 31. Be3 {[%emt 0:07:18]} Nb3 {[%emt 0:01:01]} 32. Bg5+ {[%emt 0:07:11]} Ke8 {[%emt 0:00:24]} 0-1